Cogmind - Beta 13 @@@ ROGUE MODE // 2024.04.06 @ 06:00:52 Player: Copyrite Result: Destroyed by as-61183 with Assembled Blade Performance ------------- Evolutions (2) 1000 Regions Visited (4) 800 Robots Destroyed (72) 360 Value Destroyed (1551) 1551 Prototype IDs (4) 80 Alien Tech Used (0) 0 Bonus (700) 700 TOTAL SCORE: 4491 Bonus ------- Entered Garrisons 200 Used RIF Installer 500 Cogmind --------- Core Integrity 0/550 Matter 248/300 Energy 100/100 System Corruption 8% Temperature Cool (0) Movement Core (700) Ox13 Location -8/Garrison Parts ------- > --- POWER (1) -------- (None) > --- PROPULSION (4) --- (None) > --- UTILITY (4) ------ High-capacity Storage Unit > --- WEAPON (2) ------- (None) > --- INVENTORY (20) --- Light Deuterium Engine Large Matter Pod (150) Advanced Weight Redist. System Improved Sensor Array Improved Signal Interpreter Improved Terrain Scanner Terrain Scan Processor Matter Filter Improved Utility Shielding System Shield Relay Coupler [Sentry] (19) Recalibrator Cobbler Unit Minigun Barrage Gun Assault Cannon Grenade Launcher Subdweller Shrapnel Launcher Remote Datajack Peak State ------------ > --- POWER ------------ Deuterium Engine > --- PROPULSION ------- Light Treads Light Treads Light Treads Armored Treads > --- UTILITY ---------- High-capacity Storage Unit Advanced Weight Redist. System Makeshift System Shield Relay Coupler [Hunter] > --- WEAPON ----------- Remote Datajack Ripper > --- INVENTORY -------- Light Deuterium Engine Large Matter Pod Advanced Weight Redist. System Improved Sensor Array Improved Signal Interpreter Improved Terrain Scanner Terrain Scan Processor Matter Filter Improved Utility Shielding System Shield Recalibrator Cobbler Unit Heavy Particle Cannon Minigun Barrage Gun Assault Cannon Grenade Launcher Subdweller Shrapnel Launcher Katana [Rating: 35] Favorites ----------- Power Light Ion Engine Engine Light Ion Engine Power Core Light Nuclear Core Propulsion Aluminum Leg Treads Light Treads Leg Aluminum Leg Utility High-capacity Storage Unit Device Advanced Weight Redist. System Storage High-capacity Storage Unit Hackware Makeshift System Shield Protection Propulsion Shielding Weapon Ripper Energy Gun Riot Gun Energy Cannon Heavy Particle Cannon Ballistic Gun Assault Rifle Ballistic Cannon Battle Cannon Special Weapon Remote Datajack Slashing Weapon Ripper Special Melee Weapon Improved Datajack Build | -11 -10 -10 -8 -8 ------- Run | Yrd Mat Sub Mat Gar Slots Evolved 4 | . . . 4 . Power . | . . . . . Propulsion 2 | . . . 2 . Utility 2 | . . . 2 . Weapon . | . . . . . Parts Attached 81 | 7 13 8 43 10 Power 10 | 1 2 1 6 . Engine 8 | 1 2 1 4 . Core 2 | . . . 2 . Reactor . | . . . . . Propulsion 19 | 2 2 2 10 3 Treads 10 | . 2 . 5 3 Leg 9 | 2 . 2 5 . Wheel . | . . . . . Hover . | . . . . . Flight . | . . . . . Utility 25 | 1 6 . 17 1 Device 8 | . 1 . 7 . Storage 6 | 1 4 . 1 . Processor . | . . . . . Hackware 2 | . . . 1 1 Protection 9 | . 1 . 8 . Artifact . | . . . . . Weapon 27 | 3 3 5 10 6 Energy Gun 2 | 1 . 1 . . Energy Cannon 3 | . . 1 1 1 Ballistic Gun 11 | 2 3 2 2 2 Ballistic Cannon 5 | . . . 4 1 Launcher . | . . . . . Special Weapon 1 | . . . . 1 Impact Weapon . | . . . . . Slashing Weapon 4 | . . 1 2 1 Piercing Weapon . | . . . . . Special Melee Weapon 1 | . . . 1 . Unidentified Prototypes . | . . . . . Parts Lost 19 | . 1 6 3 9 Power 3 | . . 2 . 1 Propulsion 7 | . . 2 1 4 Utility 6 | . 1 . 2 3 Weapon 3 | . . 2 . 1 Highest Loss Streak 9 | . 1 6 2 9 To Critical Strikes . | . . . . . Average Slot Usage (%) 90 | . 90 88 90 94 Engine 7 | . 14 3 4 8 Core 1 | . . . 3 . Treads 13 | . 28 7 5 31 Leg 17 | . . 20 29 . Device 3 | . 1 . 5 8 Storage 11 | . 14 14 9 9 Hackware 4 | . . . 7 12 Protection 7 | . 3 14 7 5 Energy Gun 1 | . . 7 . . Ballistic Gun 11 | . 28 9 4 8 Ballistic Cannon 2 | . . . 4 . Slashing Weapon 6 | . . 11 7 6 Naked Turns . | . . . . . Heaviest Build 90 | 10 90 54 71 57 Greatest Support 89 | 20 40 40 89 89 Greatest Overweight (x) 4 | . 2 2 2 4 Average Overweight (x) . | . 1 1 . . Largest Inventory Capacity 25 | 8 25 20 20 20 Average Capacity 19 | 6 20 20 20 20 Most Carried 20 | 4 11 16 20 20 Average Carried 14 | 1 7 13 18 19 Final Capacity 20 | 8 20 20 20 20 Final Carried 20 | 4 11 16 20 20 Class Distribution -------------------- 95% | Mutant 4% | Derelict-Mutant Dominant Class ---------------- Mutant | -10/Materials Mutant | -10/Subcaves Mutant | -8/Materials Mutant | -8/Garrison Resources | -11 -10 -10 -8 -8 ----------- Run | Yrd Mat Sub Mat Gar Matter Collected 2353 | 200 569 232 1169 183 Remotely . | . . . . . Salvage Created 2235 | . 586 132 1229 288 Parts 148 | . 48 5 87 8 Haulers Intercepted 2 | . . . 2 . Recyclers Shooed 3 | . 3 . . . Parts Field Recycled . | . . . . . Retrieved Matter . | . . . . . Parts Self-Destructed 3 | . . 3 . . Prevented . | . . . . . Kills | -11 -10 -10 -8 -8 ------- Run | Yrd Mat Sub Mat Gar Combat Hostiles Destroyed 40 | . 12 2 17 9 Melee 8 | . . . 3 5 Guns 23 | . 12 2 5 4 Cannons 8 | . . . 8 . AOE 1 | . . . 1 . Classes Destroyed 14 | . 6 2 5 1 Worker 15 | . 3 . 12 . Builder 5 | . . . 5 . Tunneler 1 | . . . 1 . Hauler 2 | . . . 2 . Recycler 6 | . 2 . 4 . Operator 3 | . 2 . 1 . Watcher 5 | . 2 . 3 . Swarmer 13 | . 6 . 7 . Grunt 12 | . 6 . 6 . Sentry 5 | . . . 3 2 Hunter 3 | . . . 1 2 Cobbler 2 | . . 2 . . Subdweller 2 | . . 2 . . Assembled 5 | . . . . 5 Best Kill Streak 9 | . 4 2 9 5 Combat Bots Only 6 | . 3 2 6 5 Max Kills in Single Turn 2 | . 2 1 2 1 Gunslinging 1 | . 1 . . . Exploded 1 | . . . 1 . Melee 1 | . . . 1 1 Uniques/NPCs Destroyed . | . . . . . Combat | -11 -10 -10 -8 -8 -------- Run | Yrd Mat Sub Mat Gar Hostile Shots Fired 347 | . 88 19 99 141 Missed 81 | . 26 2 23 30 Damage Taken 3941 | . 628 423 1048 1842 Core 789 | . 120 117 91 461 Absorbed by Shields . | . . . . . Redirected to Shielding 92 | . 11 29 25 27 Regen/Repaired (Parts) 82 | . . . 82 . Core Remaining (%) 52 | 100 . 5 . . Volleys Fired 220 | . 66 10 108 36 Largest 2 | . 2 1 2 2 Hottest 114 | . 40 50 114 75 Shots Fired 313 | . 132 10 129 42 Gun 202 | . 132 10 29 31 Cannon 111 | . . . 100 11 Launcher . | . . . . . Special . | . . . . . Kinetic 273 | . 132 8 96 37 Thermal 38 | . . . 33 5 Explosive . | . . . . . Electromagnetic 2 | . . 2 . . Robot Hit Streak 11 | . 7 11 7 6 Robot Miss Streak 8 | . 6 1 4 8 Penetration Max . | . . . . . Secondary Targets 5 | . 5 . . . Max Gunslinging Chain 1 | . 1 . . . Shots Hit Robots 219 | . 69 18 95 37 Core Hits 95 | . 30 6 47 12 Critical Kills 1 | . . . 1 . Critical Parts Destroyed 1 | . . . . 1 Critical Strikes 9 | . . . 8 1 Destroy 2 | . . . 1 1 Blast 6 | . . . 6 . Sever 1 | . . . 1 . Melee Attacks 49 | . . 8 23 18 Impact . | . . . . . Slashing 47 | . . 8 21 18 Piercing . | . . . . . Sneak Attacks 20 | . . 6 14 . Combat Hostiles . | . . . . . Follow-up Attacks . | . . . . . Damage Inflicted 5464 | . 955 628 2912 969 Guns 1736 | . 955 142 306 333 Cannons 1425 | . . . 1276 149 Explosions 187 | . . . 187 . Melee 2115 | . . 486 1143 486 Ramming 1 | . . . . 1 Kinetic 2544 | . 955 125 1082 382 Thermal 600 | . . . 500 100 Explosive 187 | . . . 187 . Electromagnetic 17 | . . 17 . . Impact . | . . . . . Slashing 2115 | . . 486 1143 486 Piercing . | . . . . . Highest Corruption 8 | . . . . 8 Average Corruption 7 | . . . . 7 Corruption Purged . | . . . . . Corruption Blocked . | . . . . . Effects 1 | . . . . 1 Data Loss (major) 1 | . . . . 1 Overload Shots . | . . . . . Overflow Damage 498 | . . 58 393 47 Projectiles 61 | . . . 51 10 Explosions 14 | . . . 14 . Melee 423 | . . 58 328 37 Knockbacks 9 | . . . 8 1 Impact . | . . . . . Kinetic 9 | . . . 8 1 Secondary . | . . . . . Self-Inflicted Damage 86 | . . . 86 . Shots 1 | . . . 1 . Rammed 1 | . . . . 1 Targets Rammed 1 | . . . . 1 Kicked . | . . . . . Crushed . | . . . . . Highest Temperature 314 | . 5 234 314 134 Average Temperature 71 | . 2 130 79 36 Received Heat Transfer 1310 | . 261 351 324 374 Siege Activations . | . . . . . Robots Corrupted . | . . . . . Combat Hostiles . | . . . . . Parts Fried . | . . . . . Impact Corruptions . | . . . . . Robots Melted . | . . . . . Combat Hostiles . | . . . . . Parts Melted 1 | . . . 1 . Heat Transferred 888 | . . . 740 148 Parts Sabotaged . | . . . . . Parts Stolen . | . . . . . Parts Stripped . | . . . . . Power Chain Reactions . | . . . . . Alert | -11 -10 -10 -8 -8 ------- Run | Yrd Mat Sub Mat Gar Peak Influence 362 | . 132 . 227 362 Initial 103 | . . . . 103 Average 99 | . 55 . 101 244 Maximum Alert Level 1 | . . . 1 1 Low Security (%) 92 | 100 100 . 98 34 Level 1 7 | . . . 1 65 Level 2 . | . . . . . Level 3 . | . . . . . Level 4 . | . . . . . Level 5 . | . . . . . High Security . | . . . . . Max Security . | . . . . . Squads Dispatched 5 | . 2 . 3 . Investigation 3 | . 1 . 2 . Extermination . | . . . . . Reinforcement 2 | . 1 . 1 . Assault . | . . . . . Garrison . | . . . . . Intercept . | . . . . . Searches Triggered . | . . . . . Construction Impeded . | . . . . . Haulers Reinforced . | . . . . . Active Scanning Responses . | . . . . . Cargo Convoy Interrupts . | . . . . . Stealth | -11 -10 -10 -8 -8 --------- Run | Yrd Mat Sub Mat Gar Distress Signals 4 | . 1 . 3 . Communications Jammed . | . . . . . Distress Signals . | . . . . . Times Spotted 78 | . 27 2 32 17 Peak Tracking Total 7 | . 4 2 5 7 Tactical Retreats 3 | . 2 . . 1 Traps | -11 -10 -10 -8 -8 ------- Run | Yrd Mat Sub Mat Gar Traps Triggered 1 | . . . . 1 Indirectly . | . . . . . Trap Hack Attempts . | . . . . . Triggered . | . . . . . Disarmed . | . . . . . Reprogrammed 4 | . 4 . . . Reused . | . . . . . Traps Extracted . | . . . . . Installed . | . . . . . Triggered 1 | . . 1 . . Machines | -11 -10 -10 -8 -8 ---------- Run | Yrd Mat Sub Mat Gar Machines Disabled 2 | . . . 1 1 Max in Single Turn 1 | . . . 1 1 Garrison Relay 1 | . . . . 1 Machines Repaired . | . . . . . Machines Dismantled . | . . . . . Machines Sabotaged . | . . . . . Overloaded Fab Kills . | . . . . . Hacking | -11 -10 -10 -8 -8 --------- Run | Yrd Mat Sub Mat Gar Machines Accessed 14 | . 6 . 7 1 Terminals 12 | . 6 . 5 1 Fabricators . | . . . . . Repair Stations 1 | . . . 1 . Recycling Units . | . . . . . Scanalyzers . | . . . . . Garrison Access 1 | . . . 1 . Total Hacks 44 | . 18 . 25 1 Successful 21 | . 9 . 11 1 Failed 23 | . 9 . 14 . Catastrophic 2 | . 2 . . . Database Lockouts . | . . . . . Manual 15 | . 7 . 8 . Terminals 38 | . 18 . 19 1 Fabricators . | . . . . . Repair Stations 5 | . . . 5 . Recycling Units . | . . . . . Scanalyzers . | . . . . . Garrison Access 1 | . . . 1 . Terminal Hacks 15 | . 8 . 6 1 Prototype ID Bank 2 | . 1 . 1 . Level Access Points 1 | . 1 . . . Emergency Access Points 2 | . 1 . 1 . Alert Level 3 | . 2 . 1 . Unreport Threat 2 | . 1 . 1 . Reprogram Traps 1 | . 1 . . . Recall Investigation 1 | . . . 1 . Zone Layout 2 | . 1 . 1 . Patrol Navigation 1 | . . . . 1 Fabricator Hacks . | . . . . . Repair Station Hacks 4 | . . . 4 . Scan Component 2 | . . . 2 . Repair 2 | . . . 2 . Recycling Unit Hacks . | . . . . . Scanalyzer . | . . . . . Garrison Access Hacks 1 | . . . 1 . Unlock Access 1 | . . . 1 . Unauthorized Hacks 1 | . 1 . . . Terminals 1 | . 1 . . . Botnet 1 | . 1 . . . Fabricators . | . . . . . Repair Stations . | . . . . . Recycling Units . | . . . . . Scanalyzers . | . . . . . Garrison Access . | . . . . . Data Cores Recovered 1 | . 1 . . . Used 1 | . 1 . . . Hacking Detections 13 | . 6 . 7 . Full Trace Events 5 | . 2 . 3 . Feedback Events . | . . . . . Feedback Blocked . | . . . . . Robot Schematics Acquired . | . . . . . Robots Built . | . . . . . Authchips . | . . . . . Time . | . . . . . Total Robot Build Rating . | . . . . . Part Schematics Acquired . | . . . . . Parts Built . | . . . . . Authchips . | . . . . . Time . | . . . . . Total Part Build Rating . | . . . . . Parts Repaired 2 | . . . 2 . Time 70 | . . . 70 . Parts Recycled . | . . . . . Recycled Matter . | . . . . . Retrieved Matter . | . . . . . Retrieved Components . | . . . . . Parts Scanalyzed . | . . . . . Part Schematics Acquired . | . . . . . Parts Damaged . | . . . . . Bothacking | -11 -10 -10 -8 -8 ------------ Run | Yrd Mat Sub Mat Gar Used RIF Installer 1 | . . . . 1 Robots Hacked 1 | . . . 1 . Non-combat 1 | . . . 1 . Combat . | . . . . . Robot Hacks Applied 1 | . . . 1 . no_distress 1 | . . . 1 . Relay Couplers Released 4 | . . . . 4 Machine Destruction 4 | . . . . 4 Attached 1 | . . . . 1 Fabnet Peak Effective % . | . . . . . Robots Rewired . | . . . . . Allies Hacked . | . . . . . Hacks Repelled . | . . . . . Allies | -11 -10 -10 -8 -8 -------- Run | Yrd Mat Sub Mat Gar Total Allies . | . . . . . Largest Group . | . . . . . Highest-Rated Group . | . . . . . Highest-Rated Ally . | . . . . . Total Orders . | . . . . . Ally Attacks . | . . . . . Total Damage . | . . . . . Kills . | . . . . . Allies Corrupted . | . . . . . Allies Melted . | . . . . . Intel | -11 -10 -10 -8 -8 ------- Run | Yrd Mat Sub Mat Gar Robot Analysis Total . | . . . . . Derelict Logs Recovered . | . . . . . Drone Launches . | . . . . . Drone Recoveries . | . . . . . Exploration | -11 -10 -10 -8 -8 ------------- Run | Yrd Mat Sub Mat Gar Turns Passed 6214 | 96 1502 1166 2957 493 Spaces Moved 2408 | 69 500 435 1201 203 Core 9 | 5 . . . 4 Treads 1050 | . 500 120 231 199 Legs 1349 | 64 . 315 970 . Wheels . | . . . . . Hover . | . . . . . Flight . | . . . . . Fastest Speed 50 | 50 160 240 162 162 Average Speed 207 | 114 248 254 185 163 Slowest Speed 320 | 120 320 260 260 250 Overloaded Moves . | . . . . . Propulsion Burnouts . | . . . . . Robots Hopped . | . . . . . Cave-ins Triggered . | . . . . . Exploration Rate (%) 35 | 4 83 18 54 18 Regions Visited 4 Branch Regions 1 Pre-discovered Areas . | . . . . . Known Exits Taken 1 | . . . 1 . Unknown Exits Taken 3 | 1 1 1 . . Scrap Searched 3 | . . 3 . . Spaces Dug . | . . . . . Terrain Destroyed 53 | . . . 53 . Melee . | . . . . . Projectile 26 | . . . 26 . AOE 27 | . . . 27 . Terrain Rammed . | . . . . . Walls Destroyed . | . . . . . Machines Disabled . | . . . . . Actions | -11 -10 -10 -8 -8 --------- Run | Yrd Mat Sub Mat Gar Total 3254 | 82 625 472 1782 293 Wait 397 | 3 26 2 348 18 Move 2404 | 68 499 434 1200 203 Hop . | . . . . . Pick Up 52 | 4 14 9 23 2 Fast Attach 15 | 6 1 . 8 . Attach 25 | . 2 5 18 . Detach 9 | . . . 9 . Swap 41 | 1 10 3 17 10 Drop 41 | . 7 1 28 5 Fire 220 | . 66 10 108 36 Melee 49 | . . 8 23 18 Ram 1 | . . . . 1 Kick . | . . . . . Crush . | . . . . . Escape Stasis . | . . . . . Rewire . | . . . . . Trap . | . . . . . Miscellaneous . | . . . . . Route ------- -11/Scrapyard -10/Materials (discovered 5 exits: *Mat x3 / [*Min] / [*Sub]) -10/Subcaves -8/Materials (discovered 2 exits: [*Fac] / Gar) -8/Garrison History --------- Turn | Location | Event 11 | -11/Scrapyard | Discovered new exit (range 14) 97 | -11/Scrapyard | Entered Materials 317 | -10/Materials | Build established: Mutant 498 | -10/Materials | Identified exit to Materials 518 | -10/Materials | Discovered new exit (range 8) 1577 | -10/Materials | Discovered new exit (range 10) 1599 | -10/Materials | Entered Subcaves 1907 | -10/Subcaves | Core integrity fell below 50% 1919 | -10/Subcaves | Core integrity fell below 20% 1951 | -10/Subcaves | Lost 6 parts (2p2n2w) 1968 | -10/Subcaves | Discovered new exit (range 11) 2765 | -10/Subcaves | Entered Materials 2765 | -8/Materials | Evolved 4 slots: Propulsion x2, Utility x2 4968 | -8/Materials | Discovered new exit (range 5) 5494 | -8/Materials | Repaired Ripper 5521 | -8/Materials | Repaired Lgt. Treads 5721 | -8/Materials | Identified exit to Garrison 5722 | -8/Materials | Entered Garrison 5844 | -8/Garrison | Triggered checkpoint 5916 | -8/Garrison | Garrison Relay disabled 5976 | -8/Garrison | Installed Relay Interface Framework 6033 | -8/Garrison | Assembled breached garrison interior 6203 | -8/Garrison | Core integrity fell below 50% 6211 | -8/Garrison | Core integrity fell below 20% 6215 | -8/Garrison | Destroyed by as-61183 with Assembled Blade Last Messages --------------- as-38587 destroyed. Lgt. Treads destroyed. Mak. System Shield destroyed. as-92018 destroyed. Acquired 20 matter. Acquired 19 matter. Knocked back. Destroyed Asb. Hover Unit. Relay Coupler [Hunter] destroyed. Adv. Weight Redist. System destroyed. System corrupted by crushing effect (+3). Deuterium Engine destroyed. Hvy. Particle Cannon severed. Ripper destroyed. System corrupted by crushing effect (+2). Slammed into as-86560. as-44585 destroyed. System corrupted: Substantial component data lost. Acquired 17 matter. Map ----- +----------------------------------------------------+ | ?????????????????????????????????????????????????? | | ?????????????????????????????????????????????????? | | ?????????????????????????????????????????????????? | | ?????????????????????????????????????????????????? | | ?????????????????????????????????????????????????? | | ?????????????????????????????????????????????????? | | ?????????????????????????????????????????????????? | | ?????????????????????????????????????????????????? | | ???????????????????????? #??????????????????????? | | ???????????????????????? #?????????????????????? | | ???????????????????????? #?????????????????????? | | ???????????????????????? #?????????????????????? | | ?????????????%[[?#?????# #?????????????????????? | | ??????????????%[## ???## ###???????????????????? | | ???????????? %#%%# ??? ????????????????????? | | ??????????????*[%= ??? ????????????????????? | | ???????????????%#! *%?? ?????????????????????? | | ????????????????= %?? ?????????????????????? | | ?????????????????# ?# #?????????????????????? | | ?????????????????# ## #?????????????????????? | | ?????????????????? #?????????????????????? | | ???????????????????? a #?????????????????????? | | ?????????????????????? %#?????????????????????? | | ???????????????????????# a#?????????????????????? | | ???????????????????????#a% #?????????????????????? | | ???????????????????????#]@a#?????????????????????? | | ???????????????????????# a #?????????????????????? | | ???????????????????????# #?????????????????????? | | ???????????????????????# ########??????????????? | | ???????????????????????# #??????????????? | | ???????????????????????# ###### #??????????????? | | ???????????????????????# T????# #??????????????? | | ???????????????????????# ###??# #??????????????? | | ???????????????????????# # ### ###############+ | | ???????????????????????# ! [ | | ???????????????????????# = | | ???????????????????????# =% | | ???????????????????????########## ###############* | | ????????????????????????????????# #?????????????## | | ????????????????????????????????# #??????????????? | | ????????????????????????????????# ######?????????? | | ????????????????????????????????# ## #?????????? | | ????????????????????????????????#%## #######???? | | ????????????????????????????????# * #???? | | ????????????????????????????????# ########" #???# | | ???????????????????????????????## #??????#"/ ##### | | ???????????????????????????????#" #??????#" + | | ???????????????????????????????#T #??????#] ##### | | ???????????????????????????????#""#??????#"!!#???# | | ???????????????????????????????####??????#"""#???? | +----------------------------------------------------+ Best States ------------- Heat Dissipation 31 Energy Generation 14 Energy Capacity 275 Matter Stores 300 Matter Capacity 300 Sight Range 16 Terrain Scan Density 10 ECM Strength 1 Additional Mass Support 9 Armor Coverage 800 Propulsion Shielding 33 Utility Shielding 66 Evasion (%) 55 Recoil Reduction 4 Defensive Hacking 11 Relay Coupler Types 1 Relay Coupler Value 17 Item Schematics ----------------- None Robot Schematics ------------------ None Fabricated ------------ Nothing Alien Tech Used ----------------- None Achievements -------------- Close Call True Hacker Challenges ------------ None Game ------ Seed BarrageSingularityRefractor Manual? 0 Play Time 00:59:13 Cumulative 7.6 hours Start 2024.04.06 @ 05:00:45 End 2024.04.06 @ 06:00:52 Sessions 1 Manual Loads 0 Difficulty Rogue Special Mode None Game No. 15 Rogue 15 Adventurer 0 Explorer 0 Win Type - Total 0 Types 0/0/0/0/0/0/0/0/0 Lore% 8 Gallery% 13 Achievement% 12 Wizard Run 0 Options --------- Layout 1 ASCII 0 Keyboard 0 Movement Numpad Keybinds 0 Fullscreen 1 Font 32/SmallcapsGlow Map View 50x35 Zoom Use 0% Tactical HUD 0 Map Filters NONE Filters NONE Steam 1 RUN: 1904c5a1-86e8-4be1-be2b-61c9e99550a2